[Event "Early-Titled-Tuesday-Blitz-June-18-2024"]
[Site "Chess.com"]
[Date "2024.06.18"]
[Round "2"]
[White "ViIIagra"]
[Black "Moon_stone123"]
[Result "1-0"]
[WhiteElo "2896"]
[BlackElo "2619"]
[TimeControl "180+1"]
[EndTime "8:18:33 PDT"]
[Termination "ViIIagra won on time"]

1. g3 {[%clk 0:02:57.7]} 1... d5 {[%clk 0:02:56.8]} 2. Bg2 {[%clk 0:02:56.5]}
2... Nf6 {[%clk 0:02:56.8]} 3. d3 {[%clk 0:02:56]} 3... g6 {[%clk 0:02:54.6]} 4.
Nf3 {[%clk 0:02:55]} 4... Bg7 {[%clk 0:02:55.1]} 5. O-O {[%clk 0:02:55.6]} 5...
O-O {[%clk 0:02:55.4]} 6. c4 {[%clk 0:02:56.3]} 6... dxc4 {[%clk 0:02:47.7]} 7.
dxc4 {[%clk 0:02:56.1]} 7... Qxd1 {[%clk 0:02:48.3]} 8. Rxd1 {[%clk 0:02:54.4]}
8... c6 {[%clk 0:02:39.8]} 9. Nc3 {[%clk 0:02:48.3]} 9... Be6 {[%clk 0:02:39.4]}
10. b3 {[%clk 0:02:14.6]} 10... Ne4 {[%clk 0:02:17.1]} 11. Nxe4 {[%clk
0:02:14.9]} 11... Bxa1 {[%clk 0:02:17.7]} 12. Ba3 {[%clk 0:02:15.6]} 12... Bg7
{[%clk 0:02:13.5]} 13. Bxe7 {[%clk 0:02:14.6]} 13... Re8 {[%clk 0:02:14.2]} 14.
Nf6+ {[%clk 0:02:08.4]} 14... Bxf6 {[%clk 0:02:14.3]} 15. Bxf6 {[%clk
0:02:09.3]} 15... Nd7 {[%clk 0:02:14.6]} 16. Bc3 {[%clk 0:01:59.1]} 16... Rad8
{[%clk 0:01:30.7]} 17. Rc1 {[%clk 0:01:57.1]} 17... f6 {[%clk 0:01:28.5]} 18.
Nd2 {[%clk 0:01:50.4]} 18... Kf7 {[%clk 0:01:27.7]} 19. h3 {[%clk 0:01:49.4]}
19... f5 {[%clk 0:01:25.1]} 20. Nf3 {[%clk 0:01:41.6]} 20... h6 {[%clk 0:01:23]}
21. Kf1 {[%clk 0:01:39.3]} 21... g5 {[%clk 0:01:20.8]} 22. Ba5 {[%clk
0:01:35.2]} 22... b6 {[%clk 0:01:16.6]} 23. Bc3 {[%clk 0:01:35.1]} 23... c5
{[%clk 0:01:16.2]} 24. Ne1 {[%clk 0:01:33.8]} 24... Nf8 {[%clk 0:01:07.4]} 25.
Nd3 {[%clk 0:01:33.5]} 25... Ng6 {[%clk 0:01:07.9]} 26. Bf3 {[%clk 0:01:32.4]}
26... f4 {[%clk 0:01:00.5]} 27. g4 {[%clk 0:01:32.2]} 27... Bc8 {[%clk
0:00:52.7]} 28. Bd5+ {[%clk 0:01:31.6]} 28... Be6 {[%clk 0:00:52]} 29. Be4
{[%clk 0:01:31.5]} 29... Bc8 {[%clk 0:00:47.8]} 30. f3 {[%clk 0:01:30.9]} 30...
Rxe4 {[%clk 0:00:40]} 31. fxe4 {[%clk 0:01:31.8]} 31... Bb7 {[%clk 0:00:40.4]}
32. e5 {[%clk 0:01:31.7]} 32... Be4 {[%clk 0:00:40.4]} 33. Rd1 {[%clk
0:01:25.8]} 33... f3 {[%clk 0:00:31.6]} 34. Nf2 {[%clk 0:01:06.3]} 34... Rxd1+
{[%clk 0:00:24.6]} 35. Nxd1 {[%clk 0:01:06.6]} 35... Ke6 {[%clk 0:00:23.4]} 36.
Nf2 {[%clk 0:01:04.1]} 36... Bb7 {[%clk 0:00:21.5]} 37. e4 {[%clk 0:00:52.9]}
37... Nxe5 {[%clk 0:00:21]} 38. Ke1 {[%clk 0:00:53.6]} 38... Ng6 {[%clk
0:00:20.9]} 39. Bg7 {[%clk 0:00:53.1]} 39... Nf4 {[%clk 0:00:14.6]} 40. Bxh6
{[%clk 0:00:53.2]} 40... Kf6 {[%clk 0:00:15.3]} 41. e5+ {[%clk 0:00:47.9]} 41...
Kg6 {[%clk 0:00:15.1]} 42. Bf8 {[%clk 0:00:48.2]} 42... Ne6 {[%clk 0:00:14.8]}
43. Be7 {[%clk 0:00:45]} 43... Nd4 {[%clk 0:00:15.2]} 44. Kd2 {[%clk 0:00:44.2]}
44... Bc8 {[%clk 0:00:08.6]} 45. Kd3 {[%clk 0:00:44]} 45... Bb7 {[%clk
0:00:08.5]} 46. Bd6 {[%clk 0:00:44.2]} 46... Kf7 {[%clk 0:00:08.1]} 47. b4
{[%clk 0:00:44.5]} 47... Ne6 {[%clk 0:00:07]} 48. b5 {[%clk 0:00:43.5]} 48...
Nd4 {[%clk 0:00:06.4]} 49. a4 {[%clk 0:00:43.6]} 49... Kg6 {[%clk 0:00:06.7]}
50. a5 {[%clk 0:00:43.4]} 50... bxa5 {[%clk 0:00:04.1]} 51. Bxc5 {[%clk
0:00:44.1]} 51... Ne6 {[%clk 0:00:03.1]} 52. Bxa7 {[%clk 0:00:44.8]} 52... a4
{[%clk 0:00:03.3]} 53. Kc3 {[%clk 0:00:43.4]} 53... a3 {[%clk 0:00:02.2]} 54.
Kb3 {[%clk 0:00:43.8]} 1-0

[Event "Early-Titled-Tuesday-Blitz-June-18-2024"]
[Site "Chess.com"]
[Date "2024.06.18"]
[Round "2"]
[White "bangchess21"]
[Black "doublesik"]
[Result "1/2-1/2"]
[WhiteElo "2766"]
[BlackElo "2552"]
[TimeControl "180+1"]
[EndTime "8:18:33 PDT"]
[Termination "Game drawn by agreement"]

1. Nf3 {[%clk 0:03:00.9]} 1... d5 {[%clk 0:02:59.5]} 2. b3 {[%clk 0:03:00.7]}
2... Nf6 {[%clk 0:02:50.5]} 3. Bb2 {[%clk 0:03:00.5]} 3... c5 {[%clk 0:02:48.3]}
4. e3 {[%clk 0:02:59.9]} 4... Nc6 {[%clk 0:02:44.8]} 5. Bb5 {[%clk 0:03:00.3]}
5... Bd7 {[%clk 0:02:42.8]} 6. O-O {[%clk 0:02:59.1]} 6... Qc7 {[%clk
0:02:37.3]} 7. d3 {[%clk 0:02:55]} 7... e6 {[%clk 0:02:35.6]} 8. Bxc6 {[%clk
0:02:54.6]} 8... Bxc6 {[%clk 0:02:32.7]} 9. Ne5 {[%clk 0:02:54.7]} 9... Bd6
{[%clk 0:02:29.4]} 10. f4 {[%clk 0:02:54.7]} 10... O-O {[%clk 0:02:23.2]} 11.
Nd2 {[%clk 0:02:52.6]} 11... Be8 {[%clk 0:02:13.3]} 12. Rf3 {[%clk 0:02:46.6]}
12... Nd7 {[%clk 0:02:05.9]} 13. Rh3 {[%clk 0:02:45.1]} 13... f6 {[%clk
0:01:58.6]} 14. Nxd7 {[%clk 0:02:44.3]} 14... Qxd7 {[%clk 0:01:57.7]} 15. Qg4
{[%clk 0:02:41.4]} 15... Bg6 {[%clk 0:01:53.5]} 16. e4 {[%clk 0:02:39.1]} 16...
f5 {[%clk 0:01:25.2]} 17. Qe2 {[%clk 0:02:16.1]} 17... fxe4 {[%clk 0:01:24.1]}
18. dxe4 {[%clk 0:02:17]} 18... Rxf4 {[%clk 0:01:11.4]} 19. Rf3 {[%clk
0:02:17.1]} 19... Raf8 {[%clk 0:01:08.5]} 20. Rxf4 {[%clk 0:02:16.3]} 20... Rxf4
{[%clk 0:01:06.2]} 21. Rf1 {[%clk 0:02:15.5]} 21... Rxf1+ {[%clk 0:01:02.8]} 22.
Qxf1 {[%clk 0:02:16.4]} 22... d4 {[%clk 0:00:57.6]} 23. g3 {[%clk 0:02:02.9]}
23... Qc6 {[%clk 0:00:45.9]} 24. Qe2 {[%clk 0:02:03.1]} 24... b5 {[%clk
0:00:41.9]} 25. Qg4 {[%clk 0:01:47.9]} 25... Be7 {[%clk 0:00:36.3]} 26. h4
{[%clk 0:01:41.3]} 26... Bf6 {[%clk 0:00:28.2]} 27. h5 {[%clk 0:01:32.7]} 27...
Bf7 {[%clk 0:00:28.5]} 28. h6 {[%clk 0:01:32.7]} 28... Bg6 {[%clk 0:00:25.3]}
29. hxg7 {[%clk 0:01:31.2]} 29... Kxg7 {[%clk 0:00:26.2]} 30. Bc1 {[%clk
0:01:30]} 30... c4 {[%clk 0:00:21.1]} 31. bxc4 {[%clk 0:01:30.1]} 31... bxc4
{[%clk 0:00:22]} 32. e5 {[%clk 0:01:23.7]} 32... Bxe5 {[%clk 0:00:19.9]} 33. Nf3
{[%clk 0:01:24.6]} 33... Bf6 {[%clk 0:00:18.7]} 34. Qf4 {[%clk 0:01:24.8]} 34...
Qe4 {[%clk 0:00:15.3]} 35. Qc7+ {[%clk 0:01:17.9]} 35... Bf7 {[%clk 0:00:13.6]}
36. Ng5 {[%clk 0:01:18.4]} 36... Bxg5 {[%clk 0:00:10.7]} 37. Bxg5 {[%clk
0:01:19.3]} 37... d3 {[%clk 0:00:08.7]} 38. cxd3 {[%clk 0:01:18.2]} 38... cxd3
{[%clk 0:00:08.5]} 39. Qc3+ {[%clk 0:01:18.7]} 39... e5 {[%clk 0:00:09.2]} 40.
Bf4 {[%clk 0:01:14.8]} 40... Qd4+ {[%clk 0:00:06.7]} 41. Qxd4 {[%clk 0:01:13.4]}
41... exd4 {[%clk 0:00:07.6]} 42. Kf2 {[%clk 0:01:11.5]} 42... Kg6 {[%clk
0:00:08.1]} 43. a3 {[%clk 0:01:08.3]} 43... Kf5 {[%clk 0:00:08.3]} 44. Bh6
{[%clk 0:01:06.7]} 44... Ke4 {[%clk 0:00:08.6]} 45. Bd2 {[%clk 0:01:06.7]} 45...
a6 {[%clk 0:00:09]} 46. Bf4 {[%clk 0:01:06.8]} 46... Bh5 {[%clk 0:00:09.4]} 47.
Bd2 {[%clk 0:01:07.7]} 47... Bg4 {[%clk 0:00:10]} 48. Bc1 {[%clk 0:01:06.6]}
48... h5 {[%clk 0:00:10.6]} 49. Bd2 {[%clk 0:01:07]} 49... Be6 {[%clk
0:00:11.2]} 50. Bc1 {[%clk 0:01:07.2]} 50... Bd5 {[%clk 0:00:11.9]} 51. Bd2
{[%clk 0:01:05.9]} 51... Kf5 {[%clk 0:00:12.5]} 52. Bc1 {[%clk 0:01:05.7]} 52...
Kg4 {[%clk 0:00:12.8]} 53. Bb2 {[%clk 0:01:05.8]} 53... Kf5 {[%clk 0:00:11.9]}
54. Bxd4 {[%clk 0:01:03.9]} 54... Ke4 {[%clk 0:00:11.9]} 55. Bc3 {[%clk
0:01:03.5]} 55... Be6 {[%clk 0:00:12.1]} 1/2-1/2

[Event "Early-Titled-Tuesday-Blitz-June-18-2024"]
[Site "Chess.com"]
[Date "2024.06.18"]
[Round "2"]
[White "Nadtkins"]
[Black "Chessmatenokk17"]
[Result "0-1"]
[WhiteElo "2560"]
[BlackElo "2792"]
[TimeControl "180+1"]
[EndTime "8:18:34 PDT"]
[Termination "Chessmatenokk17 won by resignation"]

1. Nf3 {[%clk 0:03:00.9]} 1... Nf6 {[%clk 0:03:00]} 2. g3 {[%clk 0:03:01]} 2...
g6 {[%clk 0:03:00.5]} 3. Bg2 {[%clk 0:03:00.2]} 3... Bg7 {[%clk 0:03:01.4]} 4.
O-O {[%clk 0:03:00.7]} 4... O-O {[%clk 0:03:02.1]} 5. d4 {[%clk 0:03:01.3]} 5...
d5 {[%clk 0:03:02.7]} 6. Nbd2 {[%clk 0:02:59.8]} 6... Bf5 {[%clk 0:03:02.4]} 7.
Re1 {[%clk 0:02:59.1]} 7... Ne4 {[%clk 0:03:02.3]} 8. c3 {[%clk 0:02:58.2]} 8...
Nd7 {[%clk 0:03:01.3]} 9. Nh4 {[%clk 0:02:58.4]} 9... Nxd2 {[%clk 0:02:56.6]}
10. Bxd2 {[%clk 0:02:59.3]} 10... Be6 {[%clk 0:02:53.8]} 11. e4 {[%clk
0:02:59.7]} 11... c6 {[%clk 0:02:52.8]} 12. Nf3 {[%clk 0:02:33.8]} 12... dxe4
{[%clk 0:02:47.2]} 13. Rxe4 {[%clk 0:02:33.6]} 13... Bd5 {[%clk 0:02:47.8]} 14.
Re1 {[%clk 0:02:34]} 14... b5 {[%clk 0:02:45.9]} 15. Qc1 {[%clk 0:02:24.2]}
15... a5 {[%clk 0:02:41.5]} 16. Bh6 {[%clk 0:02:12.9]} 16... a4 {[%clk
0:02:41.2]} 17. Qf4 {[%clk 0:02:02.8]} 17... e6 {[%clk 0:02:25.2]} 18. h4 {[%clk
0:01:47.3]} 18... Bxh6 {[%clk 0:02:18.1]} 19. Qxh6 {[%clk 0:01:47.1]} 19... Qf6
{[%clk 0:02:18.7]} 20. Nd2 {[%clk 0:01:32]} 20... Rfe8 {[%clk 0:02:07.7]} 21. b3
{[%clk 0:01:22.2]} 21... Bxg2 {[%clk 0:02:01]} 22. Kxg2 {[%clk 0:01:21.4]} 22...
e5 {[%clk 0:01:44.2]} 23. Ne4 {[%clk 0:01:10]} 23... Qg7 {[%clk 0:01:44.4]} 24.
Qxg7+ {[%clk 0:01:05.8]} 24... Kxg7 {[%clk 0:01:45.3]} 25. Nd6 {[%clk
0:00:59.9]} 25... Re6 {[%clk 0:01:42.8]} 26. dxe5 {[%clk 0:01:00]} 26... Rxe5
{[%clk 0:01:15.5]} 27. Rxe5 {[%clk 0:00:48.3]} 27... Nxe5 {[%clk 0:01:16.4]} 28.
Re1 {[%clk 0:00:48.3]} 28... axb3 {[%clk 0:01:09.3]} 29. axb3 {[%clk 0:00:46]}
29... Rd8 {[%clk 0:00:34.7]} 30. Rxe5 {[%clk 0:00:40.6]} 30... Rxd6 {[%clk
0:00:34.6]} 31. Rc5 {[%clk 0:00:39.5]} 31... Kf6 {[%clk 0:00:35.1]} 32. g4
{[%clk 0:00:36.7]} 32... Ke7 {[%clk 0:00:33.6]} 33. Kg3 {[%clk 0:00:34.7]} 33...
Rd3+ {[%clk 0:00:31.2]} 34. f3 {[%clk 0:00:34.7]} 34... Kd6 {[%clk 0:00:31.8]}
35. b4 {[%clk 0:00:35.1]} 35... Rd5 {[%clk 0:00:27.1]} 36. Rxd5+ {[%clk
0:00:05.6]} 36... Kxd5 {[%clk 0:00:28]} 37. Kf4 {[%clk 0:00:05.3]} 37... Kc4
{[%clk 0:00:28.5]} 38. Kg5 {[%clk 0:00:04.7]} 38... Kxc3 {[%clk 0:00:29]} 39.
Kh6 {[%clk 0:00:04.5]} 39... Kxb4 {[%clk 0:00:29.7]} 40. Kxh7 {[%clk 0:00:05.1]}
40... c5 {[%clk 0:00:30.4]} 41. h5 {[%clk 0:00:06]} 41... gxh5 {[%clk
0:00:30.1]} 42. gxh5 {[%clk 0:00:06.9]} 42... c4 {[%clk 0:00:30.2]} 43. Kg8
{[%clk 0:00:03.3]} 43... c3 {[%clk 0:00:30.1]} 44. h6 {[%clk 0:00:03.9]} 44...
c2 {[%clk 0:00:30.7]} 45. h7 {[%clk 0:00:04.8]} 45... c1=Q {[%clk 0:00:31.2]}
46. h8=Q {[%clk 0:00:05.4]} 46... Qc8+ {[%clk 0:00:31.9]} 47. Kg7 {[%clk
0:00:04.8]} 47... Qxh8+ {[%clk 0:00:32.8]} 48. Kxh8 {[%clk 0:00:05.7]} 48... Kc4
{[%clk 0:00:29.9]} 49. Kg7 {[%clk 0:00:06.1]} 49... b4 {[%clk 0:00:30.5]} 50. f4
{[%clk 0:00:06]} 50... f5 {[%clk 0:00:29.5]} 51. Kg6 {[%clk 0:00:06.1]} 51... b3
{[%clk 0:00:30.1]} 52. Kxf5 {[%clk 0:00:07]} 52... b2 {[%clk 0:00:30.7]} 53. Kg6
{[%clk 0:00:07.9]} 53... b1=Q+ {[%clk 0:00:31.5]} 54. f5 {[%clk 0:00:08.8]}
54... Kd5 {[%clk 0:00:31.5]} 0-1

[Event "Early-Titled-Tuesday-Blitz-June-18-2024"]
[Site "Chess.com"]
[Date "2024.06.18"]
[Round "2"]
[White "Lady_Nika"]
[Black "H3nriqueTV"]
[Result "0-1"]
[WhiteElo "2529"]
[BlackElo "2370"]
[TimeControl "180+1"]
[EndTime "8:18:36 PDT"]
[Termination "H3nriqueTV won by checkmate"]

1. b4 {[%clk 0:03:00.1]} 1... e5 {[%clk 0:02:59.3]} 2. a3 {[%clk 0:03:00.2]}
2... Nf6 {[%clk 0:02:54.3]} 3. Bb2 {[%clk 0:02:58.3]} 3... d6 {[%clk 0:02:53.5]}
4. c4 {[%clk 0:02:58]} 4... Bf5 {[%clk 0:02:52.4]} 5. Nc3 {[%clk 0:02:57.8]}
5... Be7 {[%clk 0:02:46.3]} 6. e3 {[%clk 0:02:57.7]} 6... O-O {[%clk 0:02:46.2]}
7. h3 {[%clk 0:02:56.5]} 7... h6 {[%clk 0:02:45.6]} 8. Qf3 {[%clk 0:02:56.1]}
8... Bd7 {[%clk 0:02:39.5]} 9. d4 {[%clk 0:02:48.6]} 9... exd4 {[%clk
0:02:38.7]} 10. exd4 {[%clk 0:02:48.8]} 10... Re8 {[%clk 0:02:38.8]} 11. Bd3
{[%clk 0:02:49]} 11... Bf8+ {[%clk 0:02:38.5]} 12. Nge2 {[%clk 0:02:48.7]} 12...
c6 {[%clk 0:02:38.9]} 13. O-O {[%clk 0:02:48.6]} 13... a5 {[%clk 0:02:29]} 14.
b5 {[%clk 0:02:47]} 14... Be6 {[%clk 0:02:21.3]} 15. d5 {[%clk 0:02:45.2]} 15...
cxd5 {[%clk 0:02:20.3]} 16. cxd5 {[%clk 0:02:45.5]} 16... Bc8 {[%clk 0:02:19.5]}
17. Ng3 {[%clk 0:02:44.6]} 17... Nbd7 {[%clk 0:02:19.4]} 18. Nce4 {[%clk
0:02:39.2]} 18... Ne5 {[%clk 0:02:08.6]} 19. Nxf6+ {[%clk 0:02:33.9]} 19... Qxf6
{[%clk 0:02:08.2]} 20. Qxf6 {[%clk 0:02:34]} 20... gxf6 {[%clk 0:02:08.2]} 21.
Bf5 {[%clk 0:02:24.9]} 21... Bg7 {[%clk 0:02:04.4]} 22. Rac1 {[%clk 0:02:15.9]}
22... Bf8 {[%clk 0:01:49.8]} 23. Rc7 {[%clk 0:02:13.7]} 23... Bxf5 {[%clk
0:01:49.4]} 24. Nxf5 {[%clk 0:02:13.8]} 24... Rab8 {[%clk 0:01:37.1]} 25. f4
{[%clk 0:02:13]} 25... Nd3 {[%clk 0:01:27]} 26. Bxf6 {[%clk 0:02:12.3]} 26...
Re4 {[%clk 0:01:00.9]} 27. Rf3 {[%clk 0:02:11.9]} 27... Nxf4 {[%clk 0:01:00.2]}
28. h4 {[%clk 0:01:59.2]} 28... h5 {[%clk 0:00:56.9]} 29. Rg3+ {[%clk
0:01:45.2]} 29... Ng6 {[%clk 0:00:55.8]} 30. Kh2 {[%clk 0:01:34]} 30... Rf4
{[%clk 0:00:37]} 31. Ne7+ {[%clk 0:01:29]} 31... Bxe7 {[%clk 0:00:35.7]} 32.
Bxe7 {[%clk 0:01:29.1]} 32... Re8 {[%clk 0:00:18.7]} 33. Bxd6 {[%clk 0:01:22.7]}
33... Rxh4+ {[%clk 0:00:18.3]} 34. Kg1 {[%clk 0:01:23.1]} 34... Re1+ {[%clk
0:00:14.6]} 35. Kf2 {[%clk 0:01:23.2]} 35... Rhe4 {[%clk 0:00:15.5]} 36. Bc5
{[%clk 0:01:11.9]} 36... R4e2+ {[%clk 0:00:13.6]} 37. Kf3 {[%clk 0:01:12]} 37...
Re4 {[%clk 0:00:14]} 38. Rg5 {[%clk 0:01:09.8]} 38... h4 {[%clk 0:00:12.6]} 39.
Bd6 {[%clk 0:00:25.1]} 39... R1e2 {[%clk 0:00:12.1]} 40. Rxb7 {[%clk 0:00:19.6]}
40... Kg7 {[%clk 0:00:12]} 41. Rc7 {[%clk 0:00:15.8]} 41... Kf6 {[%clk
0:00:11.7]} 42. Rg4 {[%clk 0:00:15.1]} 42... R4e3# {[%clk 0:00:10.5]} 0-1

[Event "Early-Titled-Tuesday-Blitz-June-18-2024"]
[Site "Chess.com"]
[Date "2024.06.18"]
[Round "2"]
[White "colegiodemadrid"]
[Black "Gumugama"]
[Result "0-1"]
[WhiteElo "2483"]
[BlackElo "2267"]
[TimeControl "180+1"]
[EndTime "8:18:36 PDT"]
[Termination "Gumugama won by checkmate"]

1. e4 {[%clk 0:03:00.9]} 1... c5 {[%clk 0:02:52.5]} 2. Nf3 {[%clk 0:03:00.2]}
2... d6 {[%clk 0:02:52]} 3. Bb5+ {[%clk 0:02:58.3]} 3... Nd7 {[%clk 0:02:51.4]}
4. O-O {[%clk 0:02:56.9]} 4... a6 {[%clk 0:02:50.7]} 5. Be2 {[%clk 0:02:56.2]}
5... Ngf6 {[%clk 0:02:49.7]} 6. d3 {[%clk 0:02:55.7]} 6... g6 {[%clk 0:02:50.1]}
7. b3 {[%clk 0:02:53.5]} 7... Bg7 {[%clk 0:02:50]} 8. Bb2 {[%clk 0:02:53.9]}
8... O-O {[%clk 0:02:49.9]} 9. Nbd2 {[%clk 0:02:54.3]} 9... b5 {[%clk
0:02:47.9]} 10. a4 {[%clk 0:02:54.7]} 10... Bb7 {[%clk 0:02:47.3]} 11. Re1
{[%clk 0:02:54]} 11... Qc7 {[%clk 0:02:41.8]} 12. Nf1 {[%clk 0:02:52.7]} 12...
d5 {[%clk 0:02:28.6]} 13. exd5 {[%clk 0:02:51.1]} 13... Nxd5 {[%clk 0:02:20.3]}
14. Bxg7 {[%clk 0:02:50.3]} 14... Kxg7 {[%clk 0:02:21.2]} 15. Qd2 {[%clk
0:02:48.8]} 15... e5 {[%clk 0:02:12.8]} 16. Ne3 {[%clk 0:02:47.8]} 16... Nf4
{[%clk 0:02:06.2]} 17. Bd1 {[%clk 0:02:35.7]} 17... Rad8 {[%clk 0:01:45.7]} 18.
axb5 {[%clk 0:02:34.5]} 18... axb5 {[%clk 0:01:43.4]} 19. Qa5 {[%clk 0:02:35]}
19... Qc6 {[%clk 0:01:40.2]} 20. Qc3 {[%clk 0:02:15.6]} 20... f6 {[%clk
0:01:40.1]} 21. b4 {[%clk 0:02:07.4]} 21... cxb4 {[%clk 0:01:33.8]} 22. Qxb4
{[%clk 0:02:01.2]} 22... Qc5 {[%clk 0:01:20.9]} 23. Qxc5 {[%clk 0:01:56.1]}
23... Nxc5 {[%clk 0:01:21.8]} 24. Rb1 {[%clk 0:01:50.7]} 24... Bc6 {[%clk
0:01:19.2]} 25. g3 {[%clk 0:01:44.9]} 25... Nh3+ {[%clk 0:01:16.3]} 26. Kf1
{[%clk 0:01:41.8]} 26... e4 {[%clk 0:01:10.2]} 27. dxe4 {[%clk 0:01:29.2]} 27...
Nxe4 {[%clk 0:01:09.7]} 28. Rb3 {[%clk 0:01:15.3]} 28... Nexf2 {[%clk
0:00:58.9]} 29. Be2 {[%clk 0:01:15.3]} 29... Rfe8 {[%clk 0:00:49.6]} 30. Rc3
{[%clk 0:01:14.1]} 30... Bxf3 {[%clk 0:00:35.4]} 31. Bxf3 {[%clk 0:01:10]} 31...
Ne4 {[%clk 0:00:36.3]} 32. Rc7+ {[%clk 0:01:07.6]} 32... Kg8 {[%clk 0:00:29.4]}
33. Ng4 {[%clk 0:00:56.6]} 33... Nd2+ {[%clk 0:00:27.6]} 34. Kg2 {[%clk
0:00:56.8]} 34... Rxe1 {[%clk 0:00:25.8]} 35. Nxf6+ {[%clk 0:00:33.5]} 35... Kf8
{[%clk 0:00:26.4]} 36. Nxh7+ {[%clk 0:00:33]} 36... Kg8 {[%clk 0:00:27]} 37.
Nf6+ {[%clk 0:00:33.1]} 37... Kf8 {[%clk 0:00:27.6]} 38. Nh7+ {[%clk 0:00:22.6]}
38... Kg8 {[%clk 0:00:27.6]} 39. Nf6+ {[%clk 0:00:21.3]} 39... Kf8 {[%clk
0:00:28]} 40. Bd5 {[%clk 0:00:10.4]} 40... Rxd5 {[%clk 0:00:24]} 41. Nxd5 {[%clk
0:00:10.6]} 41... Ng5 {[%clk 0:00:21.4]} 42. h4 {[%clk 0:00:10.2]} 42... Ne6
{[%clk 0:00:19]} 43. Ra7 {[%clk 0:00:08.8]} 43... Re2+ {[%clk 0:00:16.9]} 44.
Kh3 {[%clk 0:00:09.3]} 44... Ne4 {[%clk 0:00:15.9]} 45. h5 {[%clk 0:00:07.5]}
45... gxh5 {[%clk 0:00:15.7]} 46. g4 {[%clk 0:00:07.7]} 46... N6g5+ {[%clk
0:00:14.4]} 47. Kh4 {[%clk 0:00:05.7]} 47... Rh2# {[%clk 0:00:15]} 0-1

[Event "Early-Titled-Tuesday-Blitz-June-18-2024"]
[Site "Chess.com"]
[Date "2024.06.18"]
[Round "2"]
[White "Herzog2012"]
[Black "ReadySkate"]
[Result "1-0"]
[WhiteElo "2601"]
[BlackElo "2827"]
[TimeControl "180+1"]
[EndTime "8:18:37 PDT"]
[Termination "Herzog2012 won by resignation"]

1. e4 {[%clk 0:03:00.9]} 1... c5 {[%clk 0:02:59.6]} 2. Nf3 {[%clk 0:03:00.6]}
2... e6 {[%clk 0:02:59.6]} 3. g3 {[%clk 0:03:00.2]} 3... Nc6 {[%clk 0:02:58.8]}
4. Bg2 {[%clk 0:03:00]} 4... Nf6 {[%clk 0:02:59]} 5. d3 {[%clk 0:03:00.4]} 5...
d5 {[%clk 0:02:58.7]} 6. Qe2 {[%clk 0:02:58]} 6... Be7 {[%clk 0:02:57.8]} 7. O-O
{[%clk 0:02:55.8]} 7... O-O {[%clk 0:02:58.1]} 8. e5 {[%clk 0:02:55.8]} 8... Nd7
{[%clk 0:02:57.9]} 9. c4 {[%clk 0:02:56.4]} 9... d4 {[%clk 0:02:55.6]} 10. h4
{[%clk 0:02:53.8]} 10... Qc7 {[%clk 0:02:50.9]} 11. Bf4 {[%clk 0:02:52.9]} 11...
b6 {[%clk 0:02:50.9]} 12. Nbd2 {[%clk 0:02:50.6]} 12... Bb7 {[%clk 0:02:51.1]}
13. h5 {[%clk 0:02:49.8]} 13... a6 {[%clk 0:02:40.4]} 14. h6 {[%clk 0:02:46.8]}
14... g6 {[%clk 0:02:40.2]} 15. Nh2 {[%clk 0:01:45]} 15... Nd8 {[%clk
0:02:28.5]} 16. Bxb7 {[%clk 0:01:39.3]} 16... Qxb7 {[%clk 0:02:29.4]} 17. Ne4
{[%clk 0:01:37.7]} 17... Nc6 {[%clk 0:02:28.1]} 18. Ng4 {[%clk 0:01:37]} 18...
b5 {[%clk 0:02:22.8]} 19. b3 {[%clk 0:01:34.4]} 19... bxc4 {[%clk 0:02:22.1]}
20. bxc4 {[%clk 0:01:32.8]} 20... Qc7 {[%clk 0:02:22.1]} 21. Rab1 {[%clk
0:01:23.8]} 21... Rfb8 {[%clk 0:02:13.4]} 22. Nd6 {[%clk 0:00:48]} 22... Rxb1
{[%clk 0:01:55]} 23. Rxb1 {[%clk 0:00:45.1]} 23... Rb8 {[%clk 0:01:55.5]} 24.
Rxb8+ {[%clk 0:00:37.1]} 24... Qxb8 {[%clk 0:01:56.4]} 25. Qe4 {[%clk
0:00:34.8]} 25... Qc7 {[%clk 0:01:42.1]} 26. Ne8 {[%clk 0:00:32]} 26... Qc8
{[%clk 0:01:40.2]} 27. Nd6 {[%clk 0:00:27]} 27... Qc7 {[%clk 0:01:30.6]} 28. Qf3
{[%clk 0:00:17.8]} 28... f5 {[%clk 0:01:16.5]} 29. Ne8 {[%clk 0:00:04.9]} 29...
Qc8 {[%clk 0:00:42.9]} 30. Ngf6+ {[%clk 0:00:05.4]} 30... Kf7 {[%clk 0:00:32.1]}
31. Nxd7 {[%clk 0:00:03]} 31... Qxd7 {[%clk 0:00:30.4]} 32. Nd6+ {[%clk
0:00:03.3]} 32... Bxd6 {[%clk 0:00:29.9]} 33. exd6 {[%clk 0:00:04.2]} 33... Kf6
{[%clk 0:00:25.3]} 34. g4 {[%clk 0:00:04.2]} 34... e5 {[%clk 0:00:20.6]} 35. g5+
{[%clk 0:00:04.6]} 35... Kf7 {[%clk 0:00:20.9]} 36. Qd5+ {[%clk 0:00:05.3]}
36... Kf8 {[%clk 0:00:21.2]} 37. Bxe5 {[%clk 0:00:04.5]} 37... Nb4 {[%clk
0:00:19]} 38. Bg7+ {[%clk 0:00:04.7]} 38... Qxg7 {[%clk 0:00:16.2]} 39. hxg7+
{[%clk 0:00:04.6]} 39... Kxg7 {[%clk 0:00:17.1]} 40. d7 {[%clk 0:00:05]} 40...
Nxd5 {[%clk 0:00:16.8]} 41. cxd5 {[%clk 0:00:05.5]} 41... c4 {[%clk 0:00:17.3]}
42. d8=Q {[%clk 0:00:06]} 1-0